bitfinex/quotes_SOLUSD_20250130
["timestamp","ask_amount","ask_price","bid_price","bid_amount"]
[1738207595842,0.063,237.38,237.37,12.4026061]
[1738207596067,0.063,237.38,237.35,4.213]
[1738207596281,0.063,237.38,237.33,4.2134]
[1738207597377,0.063,237.38,237.32,213.55098]
[1738207597378,0.063,237.38,237.32,213.3]
[1738207597545,0.063,237.38,237.31,7.7833]
[1738207598472,3.8544,237.38,237.31,7.7833]
[1738207599356,0.063,237.38,237.31,7.7833]
[1738207599555,0.063,237.38,237.31,11.9971]
[1738207601563,0.063,237.38,237.31,20.1869061]
[1738207601763,0.063,237.38,237.32,8.1898061]
[1738207602353,0.063,237.38,237.33,0.37647]
[1738207602554,0.0001,237.38,237.37,9.7654061]
[1738207602873,0.0001,237.38,237.37,142.49903945]
[1738207603056,0.0001,237.38,237.37,137.89036]
[1738207606675,0.0001,237.38,237.37,146.0801661]
[1738207608869,0.0001,237.38,237.37,169.8570501]
[1738207610378,0.0001,237.38,237.37,170.8570501]
[1738207612577,0.063,237.4,237.38,30.903644]
[1738207612578,0.0001,237.4,237.38,30.903644]
[1738207612772,0.0001,237.4,237.39,10.323316]
[1738207612956,0.0001,237.4,237.39,8.6917661]
[1738207613879,0.0001,237.4,237.39,9.32339159]
[1738207614995,0.0001,237.4,237.39,37.31267559]
[1738207616164,0.0001,237.4,237.39,250.61267559]
[1738207616372,0.0001,237.4,237.39,249.9810501]
[1738207618973,0.0001,237.4,237.39,226.0786761]
[1738207620866,0.0001,237.4,237.39,81.7]
[1738207623992,0.0001,237.4,237.39,94.1022061]
[1738207624168,0.0001,237.4,237.39,94.4786761]
[1738207625688,0.0001,237.4,237.39,94.6041661]
[1738207625885,0.0001,237.4,237.39,250.9810501]
[1738207626075,0.0001,237.4,237.39,252.5931501]
[1738207626585,0.063,237.48,237.44,24.278844]
[1738207626887,0.063,237.48,237.47,52.4686501]
[1738207627066,0.063,237.48,237.47,53.10002549]
[1738207627468,0.063,237.48,237.47,29.19765149]
[1738207627982,0.063,237.48,237.47,33.40865149]
[1738207628884,0.063,237.48,237.47,57.31102549]
[1738207631164,0.063,237.48,237.47,246.70865149]
[1738207631364,0.063,237.48,237.47,226.0772761]
[1738207632592,0.063,237.48,237.47,225.9517861]
[1738207632775,0.063,237.48,237.43,8.1898061]
[1738207633489,0.063,237.48,237.44,0.25098]
[1738207634468,0.063,237.48,237.42,8.1898061]
[1738207634692,0.063,237.48,237.41,86.03739]
[1738207634983,0.063,237.48,237.42,0.25098]
[1738207635995,0.063,237.48,237.42,4.46278]
[1738207637595,0.063,237.48,237.41,81.7]
[1738207637888,0.063,237.48,237.4,4.2121]
[1738207638082,3.8528,237.48,237.39,135.8124]
[1738207638286,3.8528,237.48,237.39,4.2124]
[1738207641296,0.063,237.48,237.39,12.4022061]
[1738207643390,3.8528,237.48,237.39,12.4022061]
[1738207644098,3.8528,237.48,237.39,4.2124]
[1738207644884,3.8528,237.48,237.38,0.03]
[1738207646896,0.063,237.48,237.38,8.5962761]
[1738207647095,0.063,237.48,237.41,8.1898061]
[1738207647298,0.063,237.48,237.42,8.1898061]
[1738207647493,0.063,237.48,237.43,8.1898061]
[1738207647697,0.063,237.48,237.45,8.1898061]
[1738207648086,0.063,237.48,237.46,8.1898061]
[1738207648281,0.063,237.48,237.47,8.82133723]
[1738207648588,0.063,237.48,237.47,13.65517578]
[1738207648902,0.063,237.48,237.47,18.11715578]
[1738207650805,0.0001,237.48,237.47,256.19403978]
[1738207650984,0.0001,237.48,237.47,255.56250865]
[1738207652996,0.0001,237.48,237.47,254.56250865]
[1738207653593,0.0001,237.48,237.47,255.56250865]
[1738207654387,0.063,237.55,237.51,20.50196]
[1738207654706,0.063,237.55,237.53,13.27462465]
[1738207654906,0.063,237.55,237.53,37.05150865]
[1738207655109,0.063,237.55,237.54,25.153354]
[1738207655408,0.063,237.62,237.59,0.50196]
[1738207655615,0.063,237.62,237.61,12.89815465]
[1738207655795,0.063,237.62,237.61,144.87462465]
[1738207657021,0.063,237.62,237.61,149.08312465]
[1738207657323,0.063,237.62,237.61,172.86000865]
[1738207658323,0.063,237.62,237.61,144.62364465]
[1738207658628,0.063,237.62,237.61,131.85098]
[1738207659834,0.063,237.62,237.61,144.87462465]
[1738207659994,0.063,237.62,237.61,168.65150865]
[1738207660795,0.063,237.62,237.61,226.57462465]
[1738207661125,0.063,237.62,237.61,226.32364465]
[1738207661412,5.4749,237.62,237.51,131.6]
[1738207661615,5.4749,237.62,237.5,16.98306465]
[1738207662606,5.4749,237.62,237.51,0.25098]
[1738207663004,5.4749,237.62,237.51,13.02364465]
[1738207663508,5.4749,237.62,237.51,17.23394465]
[1738207663712,5.4749,237.62,237.53,0.25098]
[1738207664011,20.0,237.61,237.53,0.25098]
[1738207664994,1.6873,237.62,237.53,0.25098]
[1738207664995,1.6873,237.62,237.54,0.12549]
[1738207665195,5.4749,237.62,237.53,4.46088]
[1738207666724,0.063,237.62,237.56,12.77266465]
[1738207667820,0.063,237.62,237.58,12.77266465]
[1738207669929,0.063,237.62,237.6,12.77266465]
[1738207670221,0.063,237.62,237.61,0.25098]
[1738207670926,0.063,237.62,237.61,4.45948]
[1738207671921,0.063,237.62,237.61,4.71046]
[1738207672316,0.063,237.62,237.61,17.23214465]
[1738207672721,0.063,237.62,237.61,17.35763465]
[1738207673024,0.063,237.62,237.59,81.7]
[1738207673025,0.063,237.62,237.59,98.68146465]
[1738207674309,0.063,237.62,237.59,81.7]
[1738207674511,0.063,237.62,237.55,4.2094]
[1738207674710,3.8505,237.62,237.54,81.7]
[1738207675026,3.8505,237.62,237.54,85.9097]
[1738207675332,3.8505,237.62,237.53,12.77266465]
[1738207675539,0.063,237.62,237.55,12.77266465]
[1738207675827,0.063,237.62,237.58,0.25098]
[1738207676330,0.063,237.62,237.57,12.77266465]
[1738207676623,0.063,237.62,237.57,0.25098]
[1738207677330,0.063,237.62,237.57,4.2092]
[1738207678031,0.063,237.62,237.59,0.12549]
[1738207678213,0.063,237.62,237.6,0.25098]
[1738207680130,0.063,237.62,237.6,4.45958]
[1738207680740,0.063,237.62,237.58,12.77266465]
[1738207681034,0.063,237.62,237.57,135.8092]
[1738207681624,0.063,237.62,237.57,85.9092]
[1738207681837,0.063,237.62,237.58,0.25098]
[1738207682030,0.063,237.62,237.59,16.98156465]
[1738207682231,0.063,237.62,237.61,13.02364465]
[1738207683309,0.063,237.62,237.61,13.14913465]
[1738207683730,0.063,237.62,237.61,13.27462465]
[1738207683940,0.063,237.62,237.61,250.35150865]
[1738207684123,0.063,237.62,237.61,254.56000865]
[1738207686037,0.063,237.64,237.63,0.50196]
[1738207686219,0.063,237.64,237.63,13.9055471]
[1738207687036,0.063,237.64,237.63,33.7800571]
[1738207687220,0.063,237.64,237.63,13.7800571]
[1738207687422,0.063,237.64,237.63,13.14913465]
[1738207687623,0.063,237.64,237.61,217.5085]
[1738207687823,0.063,237.64,237.61,85.9085]
[1738207688752,0.063,237.64,237.61,81.7]
[1738207692844,3.8502,237.64,237.61,81.7]
[1738207693040,3.8502,237.64,237.57,0.03]
[1738207695636,0.063,237.64,237.57,0.03]
[1738207697142,0.063,237.64,237.58,4.46008]
[1738207697348,0.063,237.64,237.58,17.23274465]
[1738207697848,0.063,237.64,237.58,4.46008]
[1738207698036,3.8502,237.64,237.57,0.03]
[1738207700430,3.8502,237.64,237.57,4.2392]
[1738207700933,0.063,237.64,237.57,4.2392]
[1738207701757,0.063,237.64,237.57,17.01186465]
[1738207701931,0.063,237.64,237.59,16.98156465]
[1738207702862,0.063,237.64,237.63,12.77266465]
[1738207703954,0.063,237.64,237.63,16.98086465]
[1738207704952,0.063,237.64,237.63,17.23184465]
[1738207705159,0.063,237.64,237.63,17.35733465]
[1738207705759,0.063,237.64,237.63,4.2082]
[1738207708383,0.063,237.64,237.63,16.98086465]
[1738207709262,0.063,237.64,237.63,4.2082]
[1738207711666,0.063,237.64,237.63,17.35733465]
[1738207712178,0.063,237.64,237.57,0.03]
[1738207712350,3.8502,237.64,237.57,0.03]
[1738207713878,0.063,237.64,237.57,0.28098]
[1738207715156,3.787,237.66,237.58,4.2091]
[1738207715356,3.7866,237.68,237.58,4.2091]
[1738207715570,3.7866,237.68,237.59,12.77266465]
[1738207716174,3.7863,237.7,237.61,12.77266465]
[1738207716476,0.063,237.72,237.64,12.77266465]
[1738207716773,0.063,237.72,237.64,94.47266465]
[1738207716976,0.063,237.72,237.65,13.14913465]
[1738207717478,0.063,237.72,237.66,4.2076]
[1738207719877,0.063,237.72,237.64,81.7]
[1738207720080,3.849,237.72,237.64,81.7]
[1738207720282,3.849,237.72,237.62,4.2082]
[1738207720969,3.849,237.72,237.63,17.35723465]
[1738207721282,0.063,237.72,237.65,0.25098]
[1738207721970,0.063,237.72,237.64,0.25098]
[1738207722385,3.8489,237.72,237.63,16.98076465]
[1738207724488,3.8489,237.72,237.61,213.3]
[1738207724789,20.0,237.7,237.61,213.3]
[1738207725484,20.0,237.7,237.61,81.7]
[1738207726499,20.0,237.7,237.61,98.68116465]
[1738207726863,3.7861,237.71,237.61,98.68116465]
[1738207727088,0.063,237.72,237.62,12.77266465]
[1738207727388,3.849,237.72,237.62,12.77266465]
[1738207727566,3.849,237.72,237.63,0.25098]
[1738207727767,3.849,237.72,237.63,13.02364465]
[1738207728470,3.849,237.72,237.64,4.208]
[1738207728871,0.063,237.72,237.65,13.02364465]
[1738207729175,0.063,237.72,237.66,12.77266465]
[1738207730393,0.063,237.72,237.67,4.2075]
[1738207731268,0.063,237.72,237.65,13.02364465]
[1738207731469,0.063,237.72,237.66,4.2076]
[1738207734980,0.063,237.72,237.65,0.25098]
[1738207735984,0.063,237.72,237.65,4.45878]
[1738207736689,3.7858,237.73,237.65,4.45878]
[1738207736897,0.063,237.74,237.65,4.45878]
[1738207737797,3.8487,237.74,237.65,4.45878]
[1738207737976,3.8487,237.74,237.66,0.12549]
[1738207738501,0.063,237.74,237.66,0.12549]
[1738207739899,0.063,237.74,237.67,4.2075]
[1738207740079,3.8487,237.74,237.65,85.9077]
[1738207741680,3.8487,237.74,237.65,81.7]
[1738207741997,3.8487,237.74,237.6,7.9435]
[1738207741998,23.776884,237.73,237.6,89.6435]
[1738207742199,3.8487,237.74,237.61,0.28098]
[1738207742586,3.8487,237.74,237.62,0.37647]
[1738207743718,3.8487,237.74,237.62,4.58467]
[1738207744405,3.8487,237.74,237.64,0.37647]
[1738207746604,3.8487,237.74,237.66,0.25098]
[1738207747087,0.063,237.74,237.66,81.95098]
[1738207747805,0.063,237.74,237.67,0.12549]
[1738207748002,0.063,237.74,237.68,0.25098]
[1738207748583,0.063,237.74,237.68,4.45808]
[1738207749113,0.063,237.74,237.69,0.12549]
[1738207749411,0.063,237.74,237.7,0.25098]
[1738207749922,37.027184,237.73,237.58,12.37196011]
[1738207750085,37.027184,237.73,237.58,4.2089]
[1738207750400,37.027184,237.73,237.59,0.25098]
[1738207751400,37.027184,237.73,237.6,20.0]
[1738207755810,37.027184,237.73,237.6,24.2087]
[1738207756010,120.027184,237.73,237.6,24.2087]
[1738207759912,110.562684,237.73,237.61,0.15549]
[1738207761318,110.625684,237.73,237.62,4.2083]
[1738207762411,86.8488,237.73,237.62,4.2083]
[1738207769231,86.8488,237.73,237.64,0.12549]
[1738207769924,83.063,237.73,237.64,0.37647]
[1738207771104,83.063,237.73,237.66,0.12549]
[1738207771837,83.063,237.73,237.66,0.25098]
[1738207773130,83.063,237.73,237.67,4.2075]
[1738207773825,0.063,237.73,237.67,4.2075]
[1738207774211,0.063,237.73,237.67,0.12549]
[1738207774410,0.063,237.73,237.67,0.25098]
[1738207775230,0.063,237.73,237.67,4.45848]
[1738207775710,0.063,237.73,237.67,0.12549]
[1738207775917,3.8489,237.73,237.66,81.7]
[1738207779638,3.8489,237.73,237.63,4.2382]
[1738207781139,3.8489,237.73,237.63,0.03]
[1738207781443,23.776884,237.72,237.63,0.03]
[1738207783045,3.7861,237.71,237.63,0.03]
[1738207801757,23.776884,237.7,237.63,0.03]
[1738207802140,5.3809,237.71,237.63,0.03]
[1738207804269,5.3809,237.71,237.63,4.2382]
[1738207804556,5.3809,237.71,237.63,0.03]
[1738207804746,20.0,237.68,237.63,0.03]
[1738207807461,3.7862,237.7,237.63,0.03]
[1738207810762,20.0,237.67,237.63,0.03]
[1738207812366,3.7862,237.7,237.63,0.03]
[1738207816069,6.5592,237.72,237.63,0.03]
[1738207816268,20.0,237.71,237.63,0.03]
[1738207817251,23.7861,237.71,237.63,0.03]
[1738207821576,0.063,237.73,237.63,0.03]
[1738207821577,23.7864,237.69,237.63,0.03]
[1738207821962,33.2525,237.69,237.63,0.03]
[1738207823077,20.0,237.65,237.63,0.03]
[1738207823281,23.776884,237.64,237.63,0.03]
[1738207823476,43.776884,237.62,237.61,0.03]
[1738207825370,47.564384,237.62,237.61,0.03]
[1738207826876,23.7875,237.62,237.61,0.03]
[1738207833565,3.7872,237.64,237.61,0.03]
[1738207833886,83.0,237.65,237.61,0.03]
[1738207834056,83.0,237.65,237.55,8.16179959]
[1738207834057,3.787,237.66,237.56,8.16179959]
[1738207834262,3.7864,237.7,237.6,20.0]
[1738207834462,86.7861,237.72,237.6,0.12549]
[1738207834666,86.7861,237.72,237.6,81.81027959]
[1738207835186,86.7861,237.72,237.6,86.01887959]
[1738207839402,3.7862,237.7,237.6,81.68478959]
[1738207839598,23.776884,237.67,237.55,85.89428959]
[1738207839805,20.0,237.64,237.55,81.68478959]
[1738207841685,23.7873,237.64,237.55,85.89428959]
[1738207843609,23.7873,237.64,237.55,85.92428959]
[1738207843908,23.8503,237.64,237.55,85.92428959]
[1738207845383,3.8503,237.64,237.55,85.92428959]
[1738207846976,0.063,237.64,237.57,4.2092]
[1738207847686,0.063,237.64,237.59,8.16179959]
[1738207847871,0.063,237.64,237.6,0.25098]
[1738207848076,0.063,237.64,237.6,81.93576959]
[1738207849287,0.063,237.64,237.61,4.2085]
[1738207850419,0.063,237.64,237.62,0.25098]
[1738207850599,0.063,237.64,237.62,81.93576959]
[1738207851297,0.063,237.64,237.63,4.2082]
[1738207852406,0.063,237.64,237.62,81.93576959]
[1738207853694,0.063,237.64,237.56,221.44658918]
[1738207853895,0.063,237.64,237.56,213.28478959]
[1738207853896,3.8502,237.64,237.56,213.28478959]
[1738207854692,0.063,237.64,237.56,213.28478959]
[1738207854891,0.063,237.64,237.59,8.53826959]
[1738207855203,0.063,237.64,237.59,0.37647]
[1738207855598,0.063,237.64,237.56,225.65598918]
[1738207856509,0.063,237.64,237.57,0.37647]
[1738207856705,0.063,237.64,237.59,0.25098]
[1738207858527,0.063,237.64,237.59,4.45978]
[1738207862925,0.063,237.64,237.59,86.14456959]
[1738207864225,0.063,237.64,237.59,86.01907959]
[1738207865321,0.063,237.64,237.61,0.12549]
[1738207865533,0.063,237.64,237.63,0.12549]
[1738207866200,0.063,237.64,237.59,81.68478959]
[1738207866400,0.063,237.64,237.55,81.71478959]
[1738207866798,0.063,237.64,237.56,4.58587]
[1738207867004,3.8502,237.64,237.56,4.58587]
[1738207867224,3.8502,237.64,237.55,81.71478959]
[1738207867394,3.8502,237.64,237.55,0.03]
[1738207868640,3.8502,237.64,237.62,8.16179959]
[1738207868811,0.063,237.64,237.62,8.16179959]
[1738207869117,0.063,237.64,237.63,0.12549]
[1738207870098,0.063,237.64,237.63,24.9099178]
[1738207870409,13.16329032,237.79,237.67,24.278844]
[1738207870605,13.16329032,237.79,237.7,0.12549]
[1738207870808,3.785,237.78,237.7,0.12549]
[1738207871121,13.16329032,237.79,237.67,8.16179959]
[1738207871291,10.36684516,237.77,237.67,8.16179959]
[1738207871495,10.36684516,237.77,237.68,0.12549]
[1738207871696,3.7856,237.75,237.65,8.16179959]
[1738207872001,20.063,237.74,237.63,143.96999959]
[1738207872202,3.8488,237.73,237.63,139.76179959]
[1738207872612,3.8488,237.73,237.63,131.6]
[1738207873520,3.8488,237.73,237.63,139.76179959]
[1738207874616,0.063,237.73,237.66,0.12549]
[1738207875118,0.063,237.73,237.69,8.16179959]
[1738207875319,0.063,237.73,237.71,8.16179959]
[1738207876726,0.063,237.73,237.72,8.28728959]
[1738207877624,0.063,237.73,237.72,0.12549]
[1738207879093,0.063,237.73,237.72,8.28728959]
[1738207879916,0.063,237.73,237.72,8.16179959]
[1738207880214,0.063,237.73,237.71,81.68478959]
[1738207880810,0.063,237.73,237.67,12.36919959]
[1738207881520,0.063,237.73,237.68,8.28728959]
[1738207881700,0.063,237.73,237.68,12.49448959]
[1738207882112,0.063,237.73,237.71,8.16179959]
[1738207882509,0.063,237.73,237.7,8.53826959]
[1738207883510,0.063,237.73,237.7,12.74506959]
[1738207883928,0.063,237.73,237.7,4.58327]
[1738207885015,0.063,237.73,237.66,12.36939959]
[1738207886023,0.063,237.73,237.69,0.37647]
[1738207886605,0.063,237.73,237.69,82.06125959]
[1738207886907,0.063,237.73,237.69,81.68478959]
[1738207888606,0.063,237.86,237.79,7.8725]
[1738207888801,6.00683657,237.91,237.87,1.0]
[1738207889032,1.30873729,237.93,237.9,9.16179959]
[1738207889322,0.20913998,237.93,237.92,8.16179959]
[1738207889520,0.20913998,237.93,237.92,167.14064359]
[1738207890105,0.20913998,237.93,237.92,171.34364359]
[1738207890303,0.063,237.97,237.92,147.06479959]
[1738207890505,0.063,237.97,237.96,12.71534882]
[1738207890909,0.063,237.97,237.96,49.70954164]
[1738207891111,0.063,237.97,237.96,184.40954164]
[1738207891315,0.0001,237.97,237.96,184.40954164]
[1738207892111,0.0001,237.97,237.96,151.99411882]
[1738207892326,0.0001,237.97,237.96,17.04313882]
[1738207892507,0.0001,237.97,237.96,12.71534882]
[1738207892828,0.0001,237.97,237.96,12.84083882]
[1738207893349,0.0001,237.97,237.93,12.71534882]
[1738207893722,0.0001,237.97,237.94,0.12549]
[1738207893909,0.0001,237.97,237.95,12.71534882]
[1738207894444,0.0001,237.97,237.96,4.2023]
[1738207894643,0.0001,237.97,237.93,12.71534882]
[1738207895318,0.0001,237.97,237.96,25.43069764]
[1738207895528,1.0,238.2,237.96,242.44559534]
[1738207895529,9.0697,238.19,237.96,242.44559534]
[1738207895723,70.5069888,238.18,238.04,12.71534882]
[1738207896029,24.776884,238.16,238.04,12.71534882]
[1738207896424,0.225,238.15,238.04,12.71534882]
[1738207896623,0.225,238.15,238.04,20.340685]
[1738207896624,3.7792,238.14,238.04,20.340685]
[1738207896823,3.7792,238.14,238.05,20.340685]
[1738207897013,0.225,238.13,238.05,20.340685]
[1738207897214,0.225,238.13,238.04,20.340685]
[1738207897731,4.0045,238.13,238.03,20.340685]
[1738207897948,95.4093628,238.12,237.97,20.340685]
[1738207898114,24.776884,238.1,237.95,102.02547459]
[1738207898309,24.776884,238.1,237.95,106.22797459]
[1738207898515,0.35049,238.09,237.94,20.340685]
[1738207898937,20.0,238.07,237.93,24.668975]
[1738207899217,0.225,238.06,237.94,20.340685]
[1738207899738,0.225,238.06,237.96,20.340685]
[1738207899917,4.0055,238.06,237.96,20.340685]
[1738207900432,0.225,238.06,237.97,20.340685]
[1738207900622,0.225,238.06,237.99,20.340685]
[1738207901617,0.225,238.06,238.01,20.340685]
[1738207901818,0.225,238.06,238.02,24.541985]
[1738207902019,0.225,238.06,238.03,20.340685]
[1738207902233,0.225,238.06,238.02,24.541985]
[1738207902537,0.225,238.06,237.99,20.340685]
[1738207902713,0.225,238.06,237.97,20.340685]
[1738207902920,0.225,238.06,237.98,20.340685]
[1738207903130,0.225,238.06,238.01,20.340685]
[1738207903436,0.225,238.06,238.02,20.340685]
[1738207903631,0.225,238.06,238.03,20.340685]
[1738207903837,0.225,238.06,238.03,24.541785]
[1738207904037,0.225,238.06,238.05,20.340685]
[1738207904235,3.7786,238.18,238.07,20.340685]
[1738207904421,3.7786,238.18,238.06,20.340685]
[1738207904623,20.0,238.16,238.05,20.340685]
[1738207904817,20.0,238.16,238.04,20.466175]
[1738207905021,20.0,238.16,238.05,20.717155]
[1738207905216,20.0,238.16,238.07,0.37647]
[1738207906238,20.0,238.16,238.07,4.57667]
[1738207906462,20.0,238.16,238.05,20.340685]
[1738207906740,20.0,238.12,238.0,20.340685]
[1738207907039,20.0,238.12,238.01,0.12549]
[1738207907834,3.7797,238.11,238.01,4.32689]
[1738207908042,3.7797,238.11,238.02,20.340685]
[1738207908362,20.0,238.08,237.98,20.340685]
[1738207908649,20.0,238.08,237.94,20.340685]
[1738207909244,20.0,238.08,237.95,0.12549]
[1738207909425,20.0,238.08,237.95,20.466175]
[1738207909928,23.7804,238.07,237.95,20.340685]
[1738207911144,23.7804,238.07,237.96,0.12549]
[1738207911334,23.7804,238.07,237.95,20.340685]
[1738207911944,23.7804,238.07,237.95,24.543085]
[1738207912132,23.7804,238.07,237.96,4.32769]
[1738207912338,23.7804,238.07,237.97,20.340685]
[1738207915151,23.7804,238.07,237.97,24.542785]
[1738207915746,3.7804,238.07,237.97,24.542785]
[1738207916551,20.0,238.08,237.98,0.12549]
[1738207917341,20.0,238.08,237.99,20.340685]
[1738207917647,0.2,284.5,238.05,20.340685]
[1738207917648,3.7788,238.17,238.05,20.340685]
[1738207917944,20.0,238.15,238.06,20.340685]
[1738207918327,3.7788,238.17,238.06,20.340685]
[1738207918527,3.7788,238.17,238.07,12.71084103]
[1738207918735,20.0,238.15,238.07,12.71084103]
[1738207919347,11.8483,238.19,238.09,12.83633103]
[1738207919540,11.8483,238.19,238.07,12.71084103]
[1738207919746,20.0,238.16,238.06,12.71084103]
[1738207920062,20.0,238.16,238.04,231.08808959]
[1738207920063,8.0697,238.19,238.09,12.71084103]
[1738207920229,8.0697,238.19,238.1,0.37647]
[1738207920640,8.0697,238.19,238.11,4.1997]
[1738207921255,1.0,238.25,238.11,4.1997]
[1738207921256,20.0,238.22,238.11,4.1997]
[1738207921437,23.778,238.22,238.11,4.1997]
[1738207922753,23.778,238.22,238.12,4.32489]
[1738207923654,23.778,238.22,238.08,12.71084103]
[1738207923955,23.778,238.22,238.07,0.37647]
[1738207924345,20.0,238.21,238.07,0.37647]
[1738207924854,20.0,238.21,238.07,13.08731103]
[1738207925038,33.223,238.22,238.1,0.12549]
[1738207925541,33.253,238.22,238.1,0.12549]
[1738207926255,33.253,238.22,238.09,4.1999]
[1738207926650,33.253,238.22,238.08,12.71084103]
[1738207927042,20.0,238.19,238.04,98.59653062]
[1738207927943,20.0,238.17,238.05,0.12549]
[1738207928358,20.0,238.17,238.05,0.37647]
[1738207929062,3.7789,238.16,238.06,12.71084103]
[1738207929530,3.7789,238.16,238.07,0.12549]
[1738207929737,20.0,238.17,238.07,0.12549]
[1738207929951,20.0,238.17,238.07,0.37647]
[1738207929952,23.7788,238.17,238.07,0.37647]
[1738207930257,3.7786,238.19,238.09,0.37647]
[1738207931054,0.03,238.22,238.09,4.57647]
[1738207931351,20.0,238.19,238.08,12.71084103]
[1738207931538,20.0,238.19,238.08,16.91104103]
[1738207932255,20.0,238.19,238.09,0.12549]
[1738207932459,20.0,238.2,238.09,4.32539]
[1738207933958,20.0,238.16,238.05,134.7]
[1738207934164,20.0,238.16,238.04,12.71084103]
[1738207934361,20.0,238.16,238.05,0.37647]
[1738207934661,20.0,238.16,238.06,12.71084103]
[1738207934863,20.0,238.2,238.07,0.37647]
[1738207935160,20.0,238.2,238.09,0.12549]
[1738207936563,23.7784,238.19,238.06,12.71084103]
[1738207936766,20.0,238.17,238.06,12.71084103]
[1738207937143,20.0,238.17,238.06,12.77384103]
[1738207937461,33.2246,238.19,238.06,0.063]
[1738207937756,33.2246,238.19,238.06,0.18849]
[1738207937969,3.7792,238.14,238.06,0.063]
[1738207942067,3.7792,238.14,238.06,4.2636]
[1738207946368,5.3001,238.14,238.06,0.063]
[1738207947082,3.7785,238.19,238.09,0.12549]
[1738207947280,5.3282,238.2,238.09,0.12549]
[1738207947473,1.0,238.15,238.06,0.063]
[1738207947659,23.14,238.14,238.06,0.063]
[1738207947864,20.0,238.1,238.06,0.063]
[1738207948663,23.7799,238.1,238.06,0.063]
[1738207949250,3.7789,238.16,238.06,0.063]
[1738207949960,20.0,238.15,238.06,0.063]
[1738207950490,3.7792,238.14,238.06,0.063]
[1738207953461,1.5499,238.18,238.06,0.063]
[1738207953661,3.7791,238.16,238.06,4.2636]
[1738207954461,1.5499,238.18,238.07,0.37647]
[1738207954661,0.03,238.2,238.07,0.37647]
[1738207954852,0.03,238.2,238.09,0.12549]
[1738207955383,20.0,238.17,238.06,16.97434103]
[1738207956378,20.0,238.17,238.06,4.2635]
[1738207956980,3.7789,238.16,238.06,4.2635]
[1738207957675,3.7789,238.16,238.06,0.063]
[1738207960574,3.7789,238.16,238.06,4.2635]
[1738207961081,23.7788,238.18,238.07,0.37647]
[1738207961470,0.03,238.16,238.07,0.37647]
[1738207962484,0.03,238.16,238.08,4.2002]
[1738207962864,0.03,238.16,238.06,16.97424103]
[1738207968593,0.03,238.16,238.08,4.2002]
[1738207970087,0.03,238.16,238.06,0.063]
[1738207970262,0.03,238.16,238.06,4.2635]
[1738207971300,20.0,238.14,238.06,0.063]
[1738207971468,20.0,238.15,238.06,0.063]
[1738207971997,20.0,238.15,238.06,4.63987]
[1738207972688,23.7792,238.15,238.06,4.63987]
[1738207973067,23.7792,238.15,238.06,0.063]
[1738207973388,23.7192,238.15,238.06,0.063]
[1738207974380,23.776884,238.14,238.06,0.063]
[1738207974891,33.167,238.15,238.06,0.063]
[1738207975691,23.776884,238.14,238.06,0.063]
[1738207976585,20.0,238.11,238.06,0.063]